[Event "Titled Tuesday Blitz April 19 Early 2022"]
[White "Weetik, Vjacheslav"]
[Black "Dobre, Claudiu-Cristian"]
[WhiteFideId "4153472"]
[BlackFideId "1211854"]
[WhiteElo "2469"]
[BlackElo "2207"]
[Result "1-0"]
[Round "06"]
[TimeControl "180+1"]
[Date "2022.04.19"]
[WhiteClock "0:00:08"]
[BlackClock "0:00:02"]

1. d4 {[%clk 0:02:59]}  d5 {[%clk 0:02:59]} 2. Bf4 {[%clk 0:02:58]}  Nf6 {[%clk 0:02:52]} 3. e3 {[%clk 0:02:57]}  e6 {[%clk 0:02:53]} 4. Nd2 {[%clk 0:02:57]}  c5 {[%clk 0:02:53]} 5. c3 {[%clk 0:02:57]}  Bd6 {[%clk 0:02:52]} 6. Bxd6 {[%clk 0:02:57]}  Qxd6 {[%clk 0:02:52]} 7. Bd3 {[%clk 0:02:58]}  Nc6 {[%clk 0:02:50]} 8. f4 {[%clk 0:02:58]}  cxd4 {[%clk 0:02:46]} 9. cxd4 {[%clk 0:02:57]}  O-O {[%clk 0:02:39]} 10. Ngf3 {[%clk 0:02:56]}  b6 {[%clk 0:02:39]} 11. a3 {[%clk 0:02:44]}  a5 {[%clk 0:02:38]} 12. Qe2 {[%clk 0:02:43]}  a4 {[%clk 0:02:30]} 13. O-O {[%clk 0:02:34]}  Bb7 {[%clk 0:02:09]} 14. Ne5 {[%clk 0:02:34]}  Ne7 {[%clk 0:02:04]} 15. Qf3 {[%clk 0:02:19]}  Ba6 {[%clk 0:01:58]} 16. Bxa6 {[%clk 0:02:14]}  Rxa6 {[%clk 0:01:58]} 17. g4 {[%clk 0:02:09]}  Raa8 {[%clk 0:01:47]} 18. f5 {[%clk 0:01:59]}  Nd7 {[%clk 0:01:38]} 19. Qg3 {[%clk 0:01:54]}  f6 {[%clk 0:01:31]} 20. Nd3 {[%clk 0:01:36]}  Qxg3+ {[%clk 0:01:24]} 21. hxg3 {[%clk 0:01:37]}  e5 {[%clk 0:01:17]} 22. Nb4 {[%clk 0:01:35]}  Rfc8 {[%clk 0:01:06]} 23. Rac1 {[%clk 0:01:32]}  Kf7 {[%clk 0:01:03]} 24. Nb1 {[%clk 0:01:23]}  exd4 {[%clk 0:00:56]} 25. exd4 {[%clk 0:01:23]}  h5 {[%clk 0:00:52]} 26. Rxc8 {[%clk 0:01:10]}  Rxc8 {[%clk 0:00:51]} 27. gxh5 {[%clk 0:01:11]}  Rc4 {[%clk 0:00:50]} 28. Nc3 {[%clk 0:01:01]}  Rxd4 {[%clk 0:00:49]} 29. Nxa4 {[%clk 0:00:58]}  Rd2 {[%clk 0:00:46]} 30. Rf2 {[%clk 0:00:50]}  Rd1+ {[%clk 0:00:41]} 31. Kg2 {[%clk 0:00:50]}  Ne5 {[%clk 0:00:41]} 32. Nxb6 {[%clk 0:00:43]}  d4 {[%clk 0:00:39]} 33. Na4 {[%clk 0:00:23]}  Ng4 {[%clk 0:00:35]} 34. Rf4 {[%clk 0:00:15]}  Ne3+ {[%clk 0:00:29]} 35. Kf2 {[%clk 0:00:15]}  N3xf5 {[%clk 0:00:21]} 36. Nc5 {[%clk 0:00:07]}  Rd2+ {[%clk 0:00:20]} 37. Kf3 {[%clk 0:00:07]}  Rxb2 {[%clk 0:00:20]} 38. g4 {[%clk 0:00:06]}  Nh4+ {[%clk 0:00:15]} 39. Kg3 {[%clk 0:00:06]}  g5 {[%clk 0:00:12]} 40. Rxd4 {[%clk 0:00:07]}  Rg2+ {[%clk 0:00:10]} 41. Kh3 {[%clk 0:00:07]}  Rg1 {[%clk 0:00:07]} 42. Nbd3 {[%clk 0:00:07]}  Nc6 {[%clk 0:00:07]} 43. Rd7+ {[%clk 0:00:06]}  Ke8 {[%clk 0:00:07]} 44. h6 {[%clk 0:00:06]}  Rh1+ {[%clk 0:00:03]} 45. Kg3 {[%clk 0:00:07]}  Ng6 {[%clk 0:00:04]} 46. h7 {[%clk 0:00:08]}  Nce5 {[%clk 0:00:02]} 47. Rg7 {[%clk 0:00:08]} 1-0


[Site "https://www.chess.com"]

[Event "Titled Tuesday Blitz April 19 Early 2022"]
[White "Weishaeutel, Moritz"]
[Black "Pacheco Lugo, Alejandro Jose"]
[WhiteFideId "12967300"]
[BlackFideId "3903745"]
[WhiteElo "2002"]
[BlackElo "2146"]
[Result "0-1"]
[Round "06"]
[TimeControl "180+1"]
[Date "2022.04.19"]
[WhiteClock "0:00:03"]
[BlackClock "0:00:57"]

1. e4 {[%clk 0:03:00]}  c5 {[%clk 0:02:58]} 2. b4 {[%clk 0:02:59]}  cxb4 {[%clk 0:02:58]} 3. a3 {[%clk 0:03:00]}  bxa3 {[%clk 0:02:59]} 4. d4 {[%clk 0:03:00]}  d6 {[%clk 0:02:59]} 5. Nxa3 {[%clk 0:02:59]}  g6 {[%clk 0:02:59]} 6. Bd3 {[%clk 0:02:57]}  Bg7 {[%clk 0:02:59]} 7. Ne2 {[%clk 0:02:57]}  Nf6 {[%clk 0:02:59]} 8. O-O {[%clk 0:02:57]}  O-O {[%clk 0:02:59]} 9. c3 {[%clk 0:02:54]}  Nc6 {[%clk 0:02:57]} 10. f4 {[%clk 0:02:52]}  e5 {[%clk 0:02:41]} 11. fxe5 {[%clk 0:02:46]}  dxe5 {[%clk 0:02:41]} 12. d5 {[%clk 0:02:47]}  Na5 {[%clk 0:02:37]} 13. Rb1 {[%clk 0:02:28]}  b6 {[%clk 0:02:36]} 14. Be3 {[%clk 0:02:27]}  Ne8 {[%clk 0:02:35]} 15. Qd2 {[%clk 0:02:24]}  Nd6 {[%clk 0:02:30]} 16. c4 {[%clk 0:02:23]}  Nab7 {[%clk 0:02:29]} 17. Nb5 {[%clk 0:02:14]}  f5 {[%clk 0:02:25]} 18. Nxd6 {[%clk 0:02:12]}  Qxd6 {[%clk 0:02:22]} 19. Nc3 {[%clk 0:02:09]}  Bd7 {[%clk 0:02:14]} 20. Qc2 {[%clk 0:01:54]}  f4 {[%clk 0:02:06]} 21. Bf2 {[%clk 0:01:54]}  g5 {[%clk 0:02:00]} 22. Nb5 {[%clk 0:01:45]}  Bxb5 {[%clk 0:01:59]} 23. Rxb5 {[%clk 0:01:46]}  Rfc8 {[%clk 0:01:50]} 24. Be2 {[%clk 0:01:33]}  Nc5 {[%clk 0:01:51]} 25. Bg4 {[%clk 0:01:32]}  Rc7 {[%clk 0:01:51]} 26. Rfb1 {[%clk 0:01:27]}  Bf6 {[%clk 0:01:48]} 27. Bf5 {[%clk 0:01:21]}  Rb8 {[%clk 0:01:42]} 28. Qa2 {[%clk 0:01:14]}  Nd3 {[%clk 0:01:34]} 29. c5 {[%clk 0:00:52]}  Nxc5 {[%clk 0:01:33]} 30. Bxc5 {[%clk 0:00:47]}  Rxc5 {[%clk 0:01:33]} 31. Qxa7 {[%clk 0:00:48]}  Be7 {[%clk 0:01:14]} 32. Rxb6 {[%clk 0:00:16]}  Rxb6 {[%clk 0:01:12]} 33. Qxb6 {[%clk 0:00:12]}  Qxb6 {[%clk 0:01:12]} 34. Rxb6 {[%clk 0:00:12]}  Rc1+ {[%clk 0:01:12]} 35. Kf2 {[%clk 0:00:12]}  Bc5+ {[%clk 0:01:13]} 36. Kf3 {[%clk 0:00:12]}  Bxb6 {[%clk 0:01:13]} 37. d6 {[%clk 0:00:12]}  Rd1 {[%clk 0:01:12]} 38. d7 {[%clk 0:00:13]}  Kg7 {[%clk 0:01:12]} 39. Kg4 {[%clk 0:00:13]}  h6 {[%clk 0:01:09]} 40. g3 {[%clk 0:00:12]}  Rg1 {[%clk 0:01:02]} 41. Kf3 {[%clk 0:00:06]}  Kf6 {[%clk 0:01:02]} 42. gxf4 {[%clk 0:00:04]}  gxf4 {[%clk 0:01:02]} 43. h4 {[%clk 0:00:04]}  h5 {[%clk 0:01:00]} 44. Ke2 {[%clk 0:00:03]}  Rh1 {[%clk 0:01:00]} 45. Kf3 {[%clk 0:00:03]}  Rxh4 {[%clk 0:01:00]} 46. Kg2 {[%clk 0:00:04]}  Rg4+ {[%clk 0:00:59]} 47. Kh3 {[%clk 0:00:03]}  Rg5 {[%clk 0:00:59]} 48. Bh7 {[%clk 0:00:02]}  f3 {[%clk 0:00:59]} 49. Kh4 {[%clk 0:00:02]}  f2 {[%clk 0:00:58]} 50. d8=Q+ {[%clk 0:00:01]}  Bxd8 {[%clk 0:00:58]} 51. Bf5 {[%clk 0:00:02]}  f1=Q {[%clk 0:00:57]} 52. Bg4 {[%clk 0:00:03]}  Rxg4+ {[%clk 0:00:56]} 53. Kxh5 {[%clk 0:00:03]}  Qh3# {[%clk 0:00:57]} 0-1


[Site "https://www.chess.com"]

[Event "Titled Tuesday Blitz April 19 Early 2022"]
[White "Wieczorek, Oskar"]
[Black "Nogerbek, Kazybek"]
[WhiteFideId "1133950"]
[BlackFideId "13710427"]
[WhiteElo "2319"]
[BlackElo "2466"]
[Result "0-1"]
[Round "06"]
[TimeControl "180+1"]
[Date "2022.04.19"]
[WhiteClock "0:00:14"]
[BlackClock "0:00:05"]

1. e4 {[%clk 0:03:00]}  e5 {[%clk 0:02:56]} 2. Nf3 {[%clk 0:03:00]}  Nc6 {[%clk 0:02:57]} 3. Nc3 {[%clk 0:03:01]}  Nf6 {[%clk 0:02:57]} 4. a3 {[%clk 0:03:02]}  g6 {[%clk 0:02:31]} 5. Bc4 {[%clk 0:02:59]}  Bg7 {[%clk 0:02:31]} 6. d3 {[%clk 0:02:59]}  O-O {[%clk 0:02:32]} 7. O-O {[%clk 0:02:56]}  h6 {[%clk 0:02:32]} 8. Re1 {[%clk 0:02:55]}  d6 {[%clk 0:02:30]} 9. h3 {[%clk 0:02:52]}  Be6 {[%clk 0:02:29]} 10. Bxe6 {[%clk 0:02:51]}  fxe6 {[%clk 0:02:29]} 11. Ne2 {[%clk 0:02:51]}  Nh5 {[%clk 0:02:27]} 12. Nh2 {[%clk 0:02:51]}  Qh4 {[%clk 0:02:24]} 13. Ng4 {[%clk 0:02:50]}  Nf6 {[%clk 0:02:17]} 14. Nh2 {[%clk 0:02:44]}  Nh5 {[%clk 0:02:03]} 15. Rf1 {[%clk 0:02:43]}  Rf7 {[%clk 0:02:00]} 16. c3 {[%clk 0:02:18]}  Raf8 {[%clk 0:01:59]} 17. Be3 {[%clk 0:02:19]}  Nf4 {[%clk 0:01:56]} 18. Bxf4 {[%clk 0:01:43]}  exf4 {[%clk 0:01:56]} 19. Nf3 {[%clk 0:01:42]}  Qh5 {[%clk 0:01:56]} 20. Qb3 {[%clk 0:01:42]}  Nd8 {[%clk 0:01:52]} 21. d4 {[%clk 0:01:21]}  g5 {[%clk 0:01:40]} 22. Rfe1 {[%clk 0:01:21]}  Qg6 {[%clk 0:01:40]} 23. Nh2 {[%clk 0:01:03]}  h5 {[%clk 0:01:38]} 24. f3 {[%clk 0:01:03]}  c5 {[%clk 0:01:30]} 25. dxc5 {[%clk 0:01:01]}  dxc5 {[%clk 0:01:31]} 26. Rad1 {[%clk 0:01:01]}  Nc6 {[%clk 0:01:31]} 27. Nc1 {[%clk 0:01:00]}  Ne5 {[%clk 0:01:29]} 28. Nd3 {[%clk 0:00:59]}  c4 {[%clk 0:01:30]} 29. Nxe5 {[%clk 0:00:59]}  Bxe5 {[%clk 0:01:28]} 30. Qxc4 {[%clk 0:01:00]}  Qf6 {[%clk 0:01:24]} 31. Rd3 {[%clk 0:00:51]}  Bc7 {[%clk 0:01:17]} 32. e5 {[%clk 0:00:37]}  Qh6 {[%clk 0:01:07]} 33. Red1 {[%clk 0:00:22]}  Bxe5 {[%clk 0:01:02]} 34. Rd7 {[%clk 0:00:20]}  Qg6 {[%clk 0:01:01]} 35. Qd3 {[%clk 0:00:19]}  Qf6 {[%clk 0:00:57]} 36. Rxf7 {[%clk 0:00:19]}  Rxf7 {[%clk 0:00:50]} 37. Qd8+ {[%clk 0:00:18]}  Kg7 {[%clk 0:00:50]} 38. Qxf6+ {[%clk 0:00:18]}  Kxf6 {[%clk 0:00:51]} 39. Nf1 {[%clk 0:00:19]}  Kf5 {[%clk 0:00:48]} 40. Nd2 {[%clk 0:00:19]}  Rd7 {[%clk 0:00:48]} 41. Kf1 {[%clk 0:00:18]}  g4 {[%clk 0:00:39]} 42. hxg4+ {[%clk 0:00:19]}  hxg4 {[%clk 0:00:39]} 43. Ke2 {[%clk 0:00:20]}  gxf3+ {[%clk 0:00:40]} 44. gxf3 {[%clk 0:00:18]}  Rh7 {[%clk 0:00:38]} 45. Rf1 {[%clk 0:00:19]}  Bc7 {[%clk 0:00:34]} 46. Ne4 {[%clk 0:00:19]}  Bb6 {[%clk 0:00:33]} 47. b4 {[%clk 0:00:19]}  Rh2+ {[%clk 0:00:33]} 48. Kd3 {[%clk 0:00:20]}  Ke5 {[%clk 0:00:30]} 49. a4 {[%clk 0:00:19]}  Be3 {[%clk 0:00:30]} 50. a5 {[%clk 0:00:18]}  b6 {[%clk 0:00:28]} 51. axb6 {[%clk 0:00:18]}  axb6 {[%clk 0:00:28]} 52. Ra1 {[%clk 0:00:17]}  Rh3 {[%clk 0:00:28]} 53. Rf1 {[%clk 0:00:17]}  Rh2 {[%clk 0:00:28]} 54. Kc4 {[%clk 0:00:17]}  Rh3 {[%clk 0:00:24]} 55. Kd3 {[%clk 0:00:14]}  Kd5 {[%clk 0:00:20]} 56. c4+ {[%clk 0:00:14]}  Ke5 {[%clk 0:00:20]} 57. c5 {[%clk 0:00:12]}  bxc5 {[%clk 0:00:20]} 58. b5 {[%clk 0:00:13]}  Rh2 {[%clk 0:00:17]} 59. Kc4 {[%clk 0:00:14]}  Rc2+ {[%clk 0:00:17]} 60. Kd3 {[%clk 0:00:14]}  Rb2 {[%clk 0:00:16]} 61. Rh1 {[%clk 0:00:14]}  Rb3+ {[%clk 0:00:10]} 62. Kc4 {[%clk 0:00:13]}  Rb4+ {[%clk 0:00:10]} 63. Kc3 {[%clk 0:00:14]}  Kd5 {[%clk 0:00:07]} 64. Rh5+ {[%clk 0:00:12]}  e5 {[%clk 0:00:07]} 65. Rh6 {[%clk 0:00:13]}  Bd4+ {[%clk 0:00:06]} 66. Kd3 {[%clk 0:00:13]}  Rb3+ {[%clk 0:00:05]} 67. Kc2 {[%clk 0:00:14]}  Rb2+ {[%clk 0:00:05]} 68. Kd3 {[%clk 0:00:14]}  c4# {[%clk 0:00:05]} 0-1


[Site "https://www.chess.com"]

[Event "Titled Tuesday Blitz April 19 Early 2022"]
[White "Zakhartsov, Vladimir"]
[Black "Hasangatin, Ramil"]
[WhiteFideId "4145097"]
[BlackFideId "4122160"]
[WhiteElo "2491"]
[BlackElo "2375"]
[Result "1-0"]
[Round "06"]
[TimeControl "180+1"]
[Date "2022.04.19"]
[WhiteClock "0:00:10"]
[BlackClock "0:00:01"]

1. d4 {[%clk 0:02:58]}  Nf6 {[%clk 0:02:58]} 2. c4 {[%clk 0:02:56]}  d6 {[%clk 0:02:58]} 3. Nc3 {[%clk 0:02:52]}  e5 {[%clk 0:02:58]} 4. Nf3 {[%clk 0:02:51]}  e4 {[%clk 0:02:58]} 5. Nd2 {[%clk 0:02:47]}  Qe7 {[%clk 0:02:57]} 6. Qc2 {[%clk 0:02:43]}  Bf5 {[%clk 0:02:57]} 7. f3 {[%clk 0:02:40]}  Nc6 {[%clk 0:02:56]} 8. e3 {[%clk 0:02:28]}  Nxd4 {[%clk 0:02:56]} 9. Qa4+ {[%clk 0:02:12]}  Bd7 {[%clk 0:02:52]} 10. Qd1 {[%clk 0:02:10]}  exf3 {[%clk 0:02:52]} 11. Nxf3 {[%clk 0:02:10]}  Nxf3+ {[%clk 0:02:49]} 12. gxf3 {[%clk 0:02:09]}  Nh5 {[%clk 0:02:35]} 13. Qe2 {[%clk 0:02:03]}  Qh4+ {[%clk 0:02:35]} 14. Qf2 {[%clk 0:02:04]}  Be7 {[%clk 0:02:32]} 15. Nd5 {[%clk 0:02:01]}  Qxf2+ {[%clk 0:02:31]} 16. Kxf2 {[%clk 0:02:00]}  Bh4+ {[%clk 0:02:31]} 17. Kg2 {[%clk 0:01:58]}  O-O-O {[%clk 0:02:32]} 18. e4 {[%clk 0:01:54]}  c6 {[%clk 0:02:31]} 19. Nc3 {[%clk 0:01:53]}  f5 {[%clk 0:02:29]} 20. Bd3 {[%clk 0:01:50]}  Rhf8 {[%clk 0:02:19]} 21. Rd1 {[%clk 0:01:45]}  Kc7 {[%clk 0:02:18]} 22. Be3 {[%clk 0:01:45]}  fxe4 {[%clk 0:02:13]} 23. Bxe4 {[%clk 0:01:45]}  Nf4+ {[%clk 0:02:04]} 24. Kh1 {[%clk 0:01:44]}  Bg5 {[%clk 0:01:45]} 25. Bxa7 {[%clk 0:01:36]}  b6 {[%clk 0:01:38]} 26. Na4 {[%clk 0:01:36]}  Ra8 {[%clk 0:01:32]} 27. Bxb6+ {[%clk 0:01:34]}  Kb7 {[%clk 0:01:32]} 28. Rxd6 {[%clk 0:00:50]}  Rxa4 {[%clk 0:01:31]} 29. Bd4 {[%clk 0:00:50]}  Rf7 {[%clk 0:01:07]} 30. b3 {[%clk 0:00:49]}  Ra8 {[%clk 0:01:04]} 31. b4 {[%clk 0:00:47]}  Ne6 {[%clk 0:00:52]} 32. Be5 {[%clk 0:00:43]}  Bf4 {[%clk 0:00:45]} 33. Bxf4 {[%clk 0:00:39]}  Nxf4 {[%clk 0:00:46]} 34. b5 {[%clk 0:00:38]}  Kc7 {[%clk 0:00:47]} 35. Rad1 {[%clk 0:00:37]}  Rxa2 {[%clk 0:00:26]} 36. Bxc6 {[%clk 0:00:35]}  Bh3 {[%clk 0:00:20]} 37. R6d2 {[%clk 0:00:21]}  Rxd2 {[%clk 0:00:13]} 38. Rxd2 {[%clk 0:00:22]}  Re7 {[%clk 0:00:13]} 39. Kg1 {[%clk 0:00:20]}  Kb6 {[%clk 0:00:10]} 40. Be4 {[%clk 0:00:18]}  Kc5 {[%clk 0:00:09]} 41. Rd8 {[%clk 0:00:18]}  g5 {[%clk 0:00:09]} 42. Kf2 {[%clk 0:00:15]}  Kxc4 {[%clk 0:00:09]} 43. b6 {[%clk 0:00:15]}  Bf5 {[%clk 0:00:02]} 44. b7 {[%clk 0:00:11]}  Nh3+ {[%clk 0:00:01]} 45. Kg3 {[%clk 0:00:10]} 1-0


[Site "https://www.chess.com"]

[Event "Titled Tuesday Blitz April 19 Early 2022"]
[White "Zemlyanskii, Ivan"]
[Black "Zanette, Edgard Vinicius"]
[WhiteFideId "24249971"]
[BlackFideId "2109263"]
[WhiteElo "1759"]
[BlackElo "2182"]
[Result "1-0"]
[Round "06"]
[TimeControl "180+1"]
[Date "2022.04.19"]
[WhiteClock "0:00:41"]
[BlackClock "0:00:02"]

1. d4 {[%clk 0:03:00]}  Nf6 {[%clk 0:02:59]} 2. c4 {[%clk 0:03:00]}  c5 {[%clk 0:02:57]} 3. d5 {[%clk 0:03:00]}  e6 {[%clk 0:02:58]} 4. Nc3 {[%clk 0:02:58]}  exd5 {[%clk 0:02:58]} 5. cxd5 {[%clk 0:02:58]}  d6 {[%clk 0:02:58]} 6. e4 {[%clk 0:02:59]}  g6 {[%clk 0:02:57]} 7. f4 {[%clk 0:02:59]}  Bg7 {[%clk 0:02:55]} 8. Bb5+ {[%clk 0:02:59]}  Nfd7 {[%clk 0:02:53]} 9. Be2 {[%clk 0:02:59]}  Na6 {[%clk 0:02:21]} 10. Nf3 {[%clk 0:02:59]}  Nc7 {[%clk 0:02:17]} 11. O-O {[%clk 0:02:59]}  O-O {[%clk 0:02:15]} 12. a4 {[%clk 0:02:55]}  b6 {[%clk 0:02:14]} 13. f5 {[%clk 0:02:52]}  Ba6 {[%clk 0:01:52]} 14. Bf4 {[%clk 0:02:44]}  Qe7 {[%clk 0:01:44]} 15. Bxa6 {[%clk 0:02:20]}  Nxa6 {[%clk 0:01:41]} 16. Qe2 {[%clk 0:02:13]}  Nb4 {[%clk 0:01:31]} 17. Rae1 {[%clk 0:02:05]}  gxf5 {[%clk 0:01:22]} 18. exf5 {[%clk 0:01:48]}  Qxe2 {[%clk 0:01:20]} 19. Rxe2 {[%clk 0:01:48]}  Bxc3 {[%clk 0:01:10]} 20. bxc3 {[%clk 0:01:47]}  Nxd5 {[%clk 0:01:10]} 21. Bxd6 {[%clk 0:01:48]}  Rfe8 {[%clk 0:01:06]} 22. Rd2 {[%clk 0:01:46]}  Ne3 {[%clk 0:01:02]} 23. Rff2 {[%clk 0:01:31]}  Nc4 {[%clk 0:00:58]} 24. Rd3 {[%clk 0:01:25]}  Nxd6 {[%clk 0:00:50]} 25. Rxd6 {[%clk 0:01:26]}  Ne5 {[%clk 0:00:46]} 26. Nxe5 {[%clk 0:01:10]}  Rxe5 {[%clk 0:00:46]} 27. Rf4 {[%clk 0:01:10]}  Rae8 {[%clk 0:00:31]} 28. h3 {[%clk 0:01:06]}  Re4 {[%clk 0:00:26]} 29. Rf3 {[%clk 0:01:02]}  Rxa4 {[%clk 0:00:22]} 30. f6 {[%clk 0:00:58]}  h5 {[%clk 0:00:11]} 31. Rg3+ {[%clk 0:00:56]}  Kf8 {[%clk 0:00:09]} 32. Rg7 {[%clk 0:00:53]}  Rf4 {[%clk 0:00:09]} 33. Rh7 {[%clk 0:00:51]}  Kg8 {[%clk 0:00:08]} 34. Rxh5 {[%clk 0:00:50]}  Re1+ {[%clk 0:00:06]} 35. Kh2 {[%clk 0:00:50]}  Re8 {[%clk 0:00:04]} 36. Rh6 {[%clk 0:00:42]}  c4 {[%clk 0:00:02]} 37. Rd5 {[%clk 0:00:41]} 1-0


[Site "https://www.chess.com"]

[Event "Titled Tuesday Blitz April 19 Early 2022"]
[White "Zor, Alber Kadir"]
[Black "Al-Tarboush, Ward"]
[WhiteFideId "6353169"]
[BlackFideId "7601450"]
[WhiteElo "1966"]
[BlackElo "2276"]
[Result "1-0"]
[Round "06"]
[TimeControl "180+1"]
[Date "2022.04.19"]
[WhiteClock "0:00:59"]
[BlackClock "0:01:57"]

1. e4 {[%clk 0:03:00]}  b6 {[%clk 0:02:57]} 2. d4 {[%clk 0:02:59]}  Bb7 {[%clk 0:02:55]} 3. Nc3 {[%clk 0:02:58]}  e6 {[%clk 0:02:55]} 4. Bd3 {[%clk 0:02:58]}  Bb4 {[%clk 0:02:55]} 5. Ne2 {[%clk 0:02:57]}  d5 {[%clk 0:02:54]} 6. e5 {[%clk 0:02:35]}  Be7 {[%clk 0:02:52]} 7. O-O {[%clk 0:02:28]}  c5 {[%clk 0:02:52]} 8. Nf4 {[%clk 0:02:22]}  Nc6 {[%clk 0:02:51]} 9. Bb5 {[%clk 0:02:16]}  cxd4 {[%clk 0:02:38]} 10. Nce2 {[%clk 0:02:10]}  Bc5 {[%clk 0:02:31]} 11. Nh5 {[%clk 0:02:01]}  Kf8 {[%clk 0:02:29]} 12. Nhg3 {[%clk 0:01:35]}  Nge7 {[%clk 0:02:27]} 13. Re1 {[%clk 0:01:28]}  a6 {[%clk 0:02:21]} 14. Bxc6 {[%clk 0:01:26]}  Nxc6 {[%clk 0:02:21]} 15. Nh5 {[%clk 0:01:24]}  Qh4 {[%clk 0:02:16]} 16. Nef4 {[%clk 0:01:21]}  g6 {[%clk 0:02:02]} 17. g3 {[%clk 0:01:18]}  Qe7 {[%clk 0:02:01]} 18. Nf6 {[%clk 0:01:18]}  Nxe5 {[%clk 0:02:00]} 19. N4xd5 {[%clk 0:00:59]}  exd5 {[%clk 0:01:57]} 20. Bh6# {[%clk 0:00:59]} 1-0


[Site "https://www.chess.com"]

[Event "Titled Tuesday Blitz April 19 Early 2022"]
[White "Aakanksha Hagawane"]
[Black "Dahlgren, James Allen"]
[WhiteFideId "25014510"]
[BlackFideId "22256873"]
[WhiteElo "1971"]
[BlackElo "2102"]
[Result "1-0"]
[Round "07"]
[TimeControl "180+1"]
[Date "2022.04.19"]
[WhiteClock "0:01:16"]
[BlackClock "0:00:11"]

1. e4 {[%clk 0:03:00]}  e6 {[%clk 0:02:59]} 2. d4 {[%clk 0:02:59]}  c5 {[%clk 0:03:00]} 3. Nf3 {[%clk 0:02:58]}  c4 {[%clk 0:03:00]} 4. Bxc4 {[%clk 0:02:57]}  d5 {[%clk 0:03:01]} 5. exd5 {[%clk 0:02:56]}  exd5 {[%clk 0:03:01]} 6. Bb5+ {[%clk 0:02:56]}  Nc6 {[%clk 0:03:02]} 7. O-O {[%clk 0:02:56]}  Nf6 {[%clk 0:03:02]} 8. Re1+ {[%clk 0:02:53]}  Be7 {[%clk 0:03:02]} 9. Qe2 {[%clk 0:02:50]}  Be6 {[%clk 0:03:03]} 10. Ng5 {[%clk 0:02:48]}  O-O {[%clk 0:02:50]} 11. Nxe6 {[%clk 0:02:46]}  fxe6 {[%clk 0:02:51]} 12. Qxe6+ {[%clk 0:02:46]}  Rf7 {[%clk 0:02:52]} 13. Bxc6 {[%clk 0:02:37]}  bxc6 {[%clk 0:02:53]} 14. Qxc6 {[%clk 0:02:35]}  Rc8 {[%clk 0:02:40]} 15. Qe6 {[%clk 0:02:27]}  Rxc2 {[%clk 0:02:33]} 16. Nc3 {[%clk 0:02:26]}  Kf8 {[%clk 0:01:59]} 17. Re2 {[%clk 0:02:17]}  Rxe2 {[%clk 0:01:53]} 18. Qxe2 {[%clk 0:02:18]}  Bb4 {[%clk 0:01:47]} 19. Bg5 {[%clk 0:01:59]}  Bxc3 {[%clk 0:01:37]} 20. bxc3 {[%clk 0:01:59]}  Qc7 {[%clk 0:01:31]} 21. Bxf6 {[%clk 0:01:38]}  Rxf6 {[%clk 0:01:24]} 22. Re1 {[%clk 0:01:36]}  Qd7 {[%clk 0:01:12]} 23. Qh5 {[%clk 0:01:29]}  h6 {[%clk 0:01:08]} 24. Re5 {[%clk 0:01:23]}  Qb5 {[%clk 0:00:35]} 25. h3 {[%clk 0:01:18]}  Qb1+ {[%clk 0:00:21]} 26. Kh2 {[%clk 0:01:18]}  g6 {[%clk 0:00:11]} 27. Qxh6+ {[%clk 0:01:16]} 1-0


[Site "https://www.chess.com"]

[Event "Titled Tuesday Blitz April 19 Early 2022"]
[White "Abdrlauf, Elham"]
[Black "Krishna, C R G"]
[WhiteFideId "1533533"]
[BlackFideId "5018625"]
[WhiteElo "2334"]
[BlackElo "2332"]
[Result "0-1"]
[Round "07"]
[TimeControl "180+1"]
[Date "2022.04.19"]
[WhiteClock "0:00:04"]
[BlackClock "0:00:30"]

1. e4 {[%clk 0:03:00]}  e6 {[%clk 0:03:00]} 2. d4 {[%clk 0:02:59]}  d5 {[%clk 0:03:00]} 3. Nc3 {[%clk 0:03:00]}  Bb4 {[%clk 0:03:00]} 4. Bd3 {[%clk 0:03:00]}  dxe4 {[%clk 0:02:58]} 5. Bxe4 {[%clk 0:03:01]}  Nf6 {[%clk 0:02:58]} 6. Bf3 {[%clk 0:03:01]}  O-O {[%clk 0:02:58]} 7. Ne2 {[%clk 0:03:01]}  c5 {[%clk 0:02:58]} 8. O-O {[%clk 0:03:01]}  Nc6 {[%clk 0:02:58]} 9. a3 {[%clk 0:02:56]}  Bxc3 {[%clk 0:02:49]} 10. bxc3 {[%clk 0:02:55]}  cxd4 {[%clk 0:02:48]} 11. cxd4 {[%clk 0:02:56]}  Bd7 {[%clk 0:02:48]} 12. Rb1 {[%clk 0:02:54]}  b6 {[%clk 0:02:47]} 13. c4 {[%clk 0:02:39]}  Rc8 {[%clk 0:02:44]} 14. c5 {[%clk 0:02:31]}  Na5 {[%clk 0:02:32]} 15. Be3 {[%clk 0:02:31]}  Nc4 {[%clk 0:02:30]} 16. Qd3 {[%clk 0:02:31]}  Nxe3 {[%clk 0:02:15]} 17. Qxe3 {[%clk 0:02:32]}  bxc5 {[%clk 0:02:15]} 18. dxc5 {[%clk 0:02:32]}  Qa5 {[%clk 0:02:16]} 19. Rfc1 {[%clk 0:02:30]}  Nd5 {[%clk 0:01:59]} 20. Bxd5 {[%clk 0:02:09]}  exd5 {[%clk 0:02:00]} 21. Qc3 {[%clk 0:02:10]}  Qxc3 {[%clk 0:01:55]} 22. Rxc3 {[%clk 0:02:10]}  Bf5 {[%clk 0:01:52]} 23. Rbc1 {[%clk 0:02:08]}  Rfe8 {[%clk 0:01:42]} 24. Nd4 {[%clk 0:02:08]}  Bg6 {[%clk 0:01:43]} 25. f3 {[%clk 0:02:07]}  a6 {[%clk 0:01:39]} 26. c6 {[%clk 0:02:07]}  Kf8 {[%clk 0:01:35]} 27. c7 {[%clk 0:02:01]}  Re7 {[%clk 0:01:35]} 28. Rc6 {[%clk 0:01:45]}  Ke8 {[%clk 0:01:34]} 29. Kf2 {[%clk 0:01:45]}  h6 {[%clk 0:01:25]} 30. a4 {[%clk 0:01:42]}  Bd3 {[%clk 0:01:25]} 31. a5 {[%clk 0:01:42]}  g6 {[%clk 0:01:24]} 32. R1c5 {[%clk 0:01:03]}  Bc4 {[%clk 0:01:20]} 33. Kg3 {[%clk 0:01:03]}  Kd7 {[%clk 0:01:13]} 34. Nc2 {[%clk 0:00:55]}  Re6 {[%clk 0:01:12]} 35. Rxe6 {[%clk 0:00:34]}  fxe6 {[%clk 0:01:13]} 36. Nd4 {[%clk 0:00:17]}  e5 {[%clk 0:00:33]} 37. Nc6 {[%clk 0:00:16]}  Kd6 {[%clk 0:00:34]} 38. Ne7 {[%clk 0:00:05]}  Kxe7 {[%clk 0:00:33]} 39. Rc6 {[%clk 0:00:05]}  Kd7 {[%clk 0:00:33]} 40. Rxg6 {[%clk 0:00:06]}  Rxc7 {[%clk 0:00:32]} 41. Rxh6 {[%clk 0:00:06]}  d4 {[%clk 0:00:32]} 42. Kf2 {[%clk 0:00:06]}  Bb5 {[%clk 0:00:31]} 43. Rh7+ {[%clk 0:00:01]}  Kd6 {[%clk 0:00:31]} 44. Rh6+ {[%clk 0:00:02]}  Kd5 {[%clk 0:00:31]} 45. Rh8 {[%clk 0:00:02]}  Rc2+ {[%clk 0:00:31]} 46. Kg3 {[%clk 0:00:03]}  Bf1 {[%clk 0:00:30]} 47. f4 {[%clk 0:00:03]}  Rxg2+ {[%clk 0:00:30]} 48. Kf3 {[%clk 0:00:04]}  e4# {[%clk 0:00:30]} 0-1


[Site "https://www.chess.com"]